bitfinex-derivatives/quotes_BNBF0:USTF0_20250507
["timestamp","ask_amount","ask_price","bid_price","bid_amount"]
[1746612526153,0.99746871,605.72,604.23,0.33099978]
[1746612526856,0.99746871,605.71,604.23,0.33099978]
[1746612527355,0.99746871,605.7,604.23,0.33099978]
[1746612528055,0.99746871,605.69,604.23,0.33099978]
[1746612528254,0.99746871,605.68,604.23,0.33099978]
[1746612529053,0.99746871,605.67,604.23,0.33099978]
[1746612529753,0.99746871,605.66,604.23,0.33099978]
[1746612530354,0.99746871,605.65,604.23,0.33099978]
[1746612530654,0.99746871,605.64,604.23,0.33099978]
[1746612531160,0.99746871,605.63,604.23,0.33099978]
[1746612531860,0.99746871,605.62,604.23,0.33099978]
[1746612532159,0.99746871,605.61,604.23,0.33099978]
[1746612532854,0.99746871,605.6,604.23,0.33099978]
[1746612533560,0.99746871,605.59,604.23,0.33099978]
[1746612533861,0.99746871,605.58,604.23,0.33099978]
[1746612534454,0.99746871,605.57,604.23,0.33099978]
[1746612534959,0.99746871,605.56,604.23,0.33099978]
[1746612535657,0.99746871,605.55,604.23,0.33099978]
[1746612536161,0.99746871,605.54,604.23,0.33099978]
[1746612537162,0.99746871,605.53,604.23,0.33099978]
[1746612537359,0.99746871,605.52,604.23,0.33099978]
[1746612537862,0.99746871,605.51,604.23,0.33099978]
[1746612538361,0.99746871,605.5,604.23,0.33099978]
[1746612538958,0.99746871,605.49,604.23,0.33099978]
[1746612539462,0.99746871,605.48,604.23,0.33099978]
[1746612540162,0.99746871,605.47,604.23,0.33099978]
[1746612540763,0.99746871,605.46,604.23,0.33099978]
[1746612541363,0.99746871,605.45,604.23,0.33099978]
[1746612541965,0.99746871,605.44,604.23,0.33099978]
[1746612542263,0.99746871,605.43,604.23,0.33099978]
[1746612542760,0.99746871,605.81,604.23,0.33099978]
[1746612543463,1.30104236,605.8,604.23,0.33099978]
[1746612543663,1.30104236,605.79,604.23,0.33099978]
[1746612543864,0.99746871,605.78,604.23,0.33099978]
[1746612544066,1.30104236,605.78,604.23,0.33099978]
[1746612544365,1.30104236,605.77,604.23,0.33099978]
[1746612544559,0.30357365,605.76,604.23,0.33099978]
[1746612544860,1.30104236,605.76,604.23,0.33099978]
[1746612545064,0.99746871,605.75,604.23,0.33099978]
[1746612545265,0.30357365,605.74,604.23,0.33099978]
[1746612545967,0.99746871,605.73,604.23,0.33099978]
[1746612546465,0.30357365,605.72,604.23,0.33099978]
[1746612546666,1.30104236,605.72,604.23,0.33099978]
[1746612547167,0.30357365,605.71,604.23,0.33099978]
[1746612547465,1.30104236,605.71,604.23,0.33099978]
[1746612547862,0.99746871,605.71,604.23,0.33099978]
[1746612548062,0.99746871,605.7,604.23,0.33099978]
[1746612548570,0.99746871,605.69,604.23,0.33099978]
[1746612549069,0.99746871,605.68,604.23,0.33099978]
[1746612549871,0.99746871,605.67,604.23,0.33099978]
[1746612550572,0.99746871,605.66,604.23,0.33099978]
[1746612551370,0.99746871,605.65,604.23,0.33099978]
[1746612551870,0.99746871,605.64,604.23,0.33099978]
[1746612552474,0.99746871,605.63,604.23,0.33099978]
[1746612554976,0.99746871,605.62,604.23,0.33099978]
[1746612555375,0.99746871,605.61,604.23,0.33099978]
[1746612556371,0.99746871,605.6,604.23,0.33099978]
[1746612556978,0.99746871,605.59,604.23,0.33099978]
[1746612557679,0.99746871,605.58,604.23,0.33099978]
[1746612558075,0.99746871,605.57,604.23,0.33099978]
[1746612558681,0.99746871,605.56,604.23,0.33099978]
[1746612559181,0.99746871,605.55,604.23,0.33099978]
[1746612559781,0.99746871,605.54,604.23,0.33099978]
[1746612560383,0.99746871,605.53,604.23,0.33099978]
[1746612560983,0.99746871,605.52,604.23,0.33099978]
[1746612561684,0.99746871,605.51,604.23,0.33099978]
[1746612561885,0.99746871,605.5,604.23,0.33099978]
[1746612562286,0.99746871,605.49,604.23,0.33099978]
[1746612562787,0.99746871,605.48,604.23,0.33099978]
[1746612563383,0.99746871,605.47,604.23,0.33099978]
[1746612563888,0.99746871,605.46,604.23,0.33099978]
[1746612564586,0.99746871,605.45,604.23,0.33099978]
[1746612565087,0.99746871,605.44,604.23,0.33099978]
[1746612565588,0.99746871,605.43,604.23,0.33099978]
[1746612566090,0.28753439,605.98,604.23,0.33099978]
[1746612566489,0.99746871,605.97,604.23,0.33099978]
[1746612567389,0.99746871,605.96,604.23,0.33099978]
[1746612567687,0.99746871,605.95,604.23,0.33099978]
[1746612568487,0.99746871,605.94,604.23,0.33099978]
[1746612568788,0.99746871,605.93,604.23,0.33099978]
[1746612569085,0.99746871,605.92,604.23,0.33099978]
[1746612569888,0.99746871,605.91,604.23,0.33099978]
[1746612570488,0.99746871,605.9,604.23,0.33099978]
[1746612571192,0.99746871,605.89,604.23,0.33099978]
[1746612571793,0.99746871,605.88,604.23,0.33099978]
[1746612572392,0.99746871,605.87,604.23,0.33099978]
[1746612572897,0.99746871,605.86,604.23,0.33099978]
[1746612573195,0.99746871,605.85,604.23,0.33099978]
[1746612573796,0.99746871,605.84,604.23,0.33099978]
[1746612574395,0.99746871,605.83,604.23,0.33099978]
[1746612575098,0.99746871,605.82,604.23,0.33099978]
[1746612575495,0.99746871,605.81,604.23,0.33099978]
[1746612575791,0.99746871,605.8,604.23,0.33099978]
[1746612576197,0.99746871,605.79,604.23,0.33099978]
[1746612576895,0.99746871,605.78,604.23,0.33099978]
[1746612577296,0.99746871,605.77,604.23,0.33099978]
[1746612577896,0.99746871,605.76,604.23,0.33099978]
[1746612578495,0.99746871,605.75,604.23,0.33099978]
[1746612579092,0.99746871,605.74,604.23,0.33099978]
[1746612579297,0.99746871,605.73,604.23,0.33099978]
[1746612580091,0.99746871,605.72,604.23,0.33099978]
[1746612580492,0.99746871,605.71,604.23,0.33099978]
[1746612580996,0.99746871,605.7,604.23,0.33099978]
[1746612581391,0.99746871,605.69,604.23,0.33099978]
[1746612581795,0.99746871,605.68,604.23,0.33099978]
[1746612582401,0.99746871,605.67,604.23,0.33099978]
[1746612582796,0.99746871,605.66,604.23,0.33099978]
[1746612583496,0.99746871,605.65,604.23,0.33099978]
[1746612584097,0.99746871,605.64,604.23,0.33099978]
[1746612584598,0.99746871,605.63,604.23,0.33099978]
[1746612584998,0.99746871,605.62,604.23,0.33099978]
[1746612585595,0.99746871,605.61,604.23,0.33099978]
[1746612586399,0.99746871,605.6,604.23,0.33099978]
[1746612586999,0.99746871,605.59,604.23,0.33099978]
[1746612587598,0.99746871,605.58,604.23,0.33099978]
[1746612587799,0.99746871,605.57,604.23,0.33099978]
[1746612588403,0.99746871,605.56,604.23,0.33099978]
[1746612589102,0.99746871,605.87,604.23,0.33099978]
[1746612589502,0.99746871,605.86,604.23,0.33099978]
[1746612590101,0.99746871,605.85,604.23,0.33099978]
[1746612590401,0.99746871,605.84,604.23,0.33099978]
[1746612591203,0.99746871,605.83,604.23,0.33099978]
[1746612592101,0.99746871,605.82,604.23,0.33099978]
[1746612592803,0.99746871,605.81,604.23,0.33099978]
[1746612593303,0.99746871,605.8,604.23,0.33099978]
[1746612593703,0.99746871,605.8,604.23,1.37814758]
[1746612593904,0.99746871,605.79,604.23,1.37814758]
[1746612594304,0.99746871,605.78,604.23,1.37814758]
[1746612594700,0.99746871,605.77,604.23,1.37814758]
[1746612595200,0.99746871,605.76,604.23,1.37814758]
[1746612595701,0.99746871,605.75,604.23,0.33099978]
[1746612596105,0.99746871,605.74,604.23,0.33099978]
[1746612596599,0.99746871,605.73,604.23,0.33099978]
[1746612597204,0.99746871,605.72,604.23,0.33099978]
[1746612597607,0.99746871,605.71,604.23,0.33099978]
[1746612598407,0.99746871,605.7,604.23,0.33099978]
[1746612598806,0.99746871,605.69,604.23,0.33099978]
[1746612599309,0.99746871,605.68,604.23,0.33099978]
[1746612599508,0.99746871,605.68,604.24,1.0471478]
[1746612599708,0.99746871,605.68,604.26,0.33098335]
[1746612600209,0.99746871,605.67,604.26,0.33098335]
[1746612600808,0.99746871,605.66,604.26,0.33098335]
[1746612601608,0.99746871,605.65,604.26,0.33098335]
[1746612602411,0.99746871,605.64,604.26,0.33098335]
[1746612602807,0.99746871,605.63,604.26,0.33098335]
[1746612603213,0.99746871,605.62,604.26,0.33098335]
[1746612603605,0.99746871,605.61,604.26,0.33098335]
[1746612604312,0.99746871,605.6,604.26,0.33098335]
[1746612605207,0.99746871,605.59,604.26,0.33098335]
[1746612605407,0.99746871,605.58,604.26,0.33098335]
[1746612606008,0.99746871,605.57,604.26,0.33098335]
[1746612607113,0.99746871,605.56,604.26,0.33098335]
[1746612607612,0.99746871,605.55,604.26,0.33098335]
[1746612608013,0.99746871,605.54,604.26,0.33098335]
[1746612608512,0.99746871,605.53,604.26,0.33098335]
[1746612609210,0.99746871,605.52,604.26,0.33098335]
[1746612610013,0.99746871,605.51,604.26,0.33098335]
[1746612610209,0.99746871,605.5,604.26,0.33098335]
[1746612610917,0.99746871,605.49,604.26,0.33098335]
[1746612611318,0.99746871,605.48,604.26,0.33098335]
[1746612611918,0.99746871,605.47,604.26,0.33098335]
[1746612612517,0.99746871,605.46,604.26,0.33098335]
[1746612613017,0.99746871,605.45,604.26,0.33098335]
[1746612613318,0.99746871,605.44,604.26,0.33098335]
[1746612613917,0.99746871,605.43,604.26,0.33098335]
[1746612614213,0.99746871,605.42,604.26,0.33098335]
[1746612614617,0.99746871,605.41,604.26,0.33098335]
[1746612616517,0.99746871,605.4,604.26,0.33098335]
[1746612617121,0.99746871,605.39,604.26,0.33098335]
[1746612617718,0.99746871,605.38,604.26,0.33098335]
[1746612618315,0.99746871,605.37,604.26,0.33098335]
[1746612618518,0.99746871,605.36,604.26,0.33098335]
[1746612619127,0.99746871,605.35,604.26,0.33098335]
[1746612619420,0.99746871,605.34,604.26,0.33098335]
[1746612619915,0.68681034,606.75,604.26,0.33098335]
[1746612620122,0.32967938,606.65,604.26,0.33098335]
[1746612620319,0.28758192,605.85,604.26,0.33098335]
[1746612620717,0.99974205,605.84,604.26,0.33098335]
[1746612620918,0.99974205,605.83,604.26,0.33098335]
[1746612621318,0.99974205,605.82,604.26,0.33098335]
[1746612622121,0.99974205,605.81,604.26,0.33098335]
[1746612622622,0.99974205,605.8,604.26,0.33098335]
[1746612623019,0.99974205,605.79,604.26,0.33098335]
[1746612623723,0.99974205,605.78,604.26,0.33098335]
[1746612624323,0.99974205,605.77,604.26,0.33098335]
[1746612624822,0.99974205,605.76,604.26,0.33098335]
[1746612625624,0.99974205,605.75,604.26,0.33098335]
[1746612625925,0.99974205,605.74,604.26,0.33098335]
[1746612626325,0.99974205,605.73,604.26,0.33098335]
[1746612627325,0.99974205,605.72,604.26,0.33098335]
[1746612628326,0.99974205,605.71,604.26,0.33098335]
[1746612629023,0.99974205,605.7,604.26,0.33098335]
[1746612629625,0.99974205,605.69,604.26,0.33098335]
[1746612630227,0.99974205,605.68,604.26,0.33098335]
[1746612630723,0.99974205,605.67,604.26,0.33098335]
[1746612631429,0.99974205,605.66,604.26,0.33098335]
[1746612631822,0.99974205,605.65,604.26,0.33098335]
[1746612632326,0.99974205,605.64,604.26,0.33098335]
[1746612632524,0.99974205,605.63,604.26,0.33098335]
[1746612632923,0.99974205,605.62,604.26,0.33098335]
[1746612633224,0.99974205,605.61,604.26,0.33098335]
[1746612633530,0.99974205,605.6,604.26,0.33098335]
[1746612633930,0.99974205,605.59,604.26,0.33098335]
[1746612634833,0.99974205,605.58,604.26,0.33098335]
[1746612635430,0.99974205,605.57,604.26,0.33098335]
[1746612636331,0.99974205,605.56,604.26,0.33098335]
[1746612637231,0.99974205,605.55,604.26,0.33098335]
[1746612637730,0.99974205,605.54,604.26,0.33098335]
[1746612638432,0.99974205,605.53,604.26,0.33098335]
[1746612638831,0.99974205,605.52,604.26,0.33098335]
[1746612639331,0.99974205,605.51,604.26,0.33098335]
[1746612639933,0.99974205,605.5,604.26,0.33098335]
[1746612640129,0.99974205,605.49,604.26,0.33098335]
[1746612640727,0.99974205,605.48,604.26,0.33098335]
[1746612641032,0.99974205,605.47,604.26,0.33098335]
[1746612641527,0.99974205,605.46,604.26,0.33098335]
[1746612642133,0.99974205,605.45,604.26,0.33098335]
[1746612642532,0.99974205,605.44,604.26,0.33098335]
[1746612643233,0.99974205,605.43,604.26,0.33098335]
[1746612643432,0.99974205,605.42,604.26,0.33098335]
[1746612644129,0.99974205,605.41,604.26,0.33098335]
[1746612644630,0.99974205,605.4,604.26,0.33098335]
[1746612645236,0.99974205,605.39,604.26,0.33098335]
[1746612645432,0.99974205,605.38,604.26,0.33098335]
[1746612645928,0.99974205,605.37,604.26,0.33098335]
[1746612646435,0.99974205,605.36,604.26,0.33098335]
[1746612646830,0.32967938,606.65,604.26,0.33098335]
[1746612647038,0.99931521,605.35,604.26,0.33098335]
[1746612647536,0.99931521,605.35,604.27,1.767]
[1746612647835,0.99931521,605.34,604.29,0.33096691]
[1746612648435,0.99931521,605.33,604.29,0.33096691]
[1746612649038,0.99931521,605.32,604.29,0.33096691]
[1746612649636,0.99931521,605.31,604.29,0.33096691]
[1746612650036,0.99931521,605.3,604.29,0.33096691]
[1746612650540,0.99931521,605.29,604.29,0.33096691]
[1746612651048,0.99931521,605.28,604.29,0.33096691]
[1746612651542,0.99931521,605.27,604.29,0.33096691]
[1746612652043,0.99931521,605.26,604.29,0.33096691]
[1746612652543,0.99931521,605.25,604.29,0.33096691]
[1746612653144,0.99931521,605.24,604.29,0.33096691]
[1746612653443,0.99931521,605.23,604.29,0.33096691]
[1746612653938,0.99931521,605.22,604.29,0.33096691]
[1746612654442,0.28758073,605.85,604.29,0.33096691]
[1746612654937,0.99861581,605.84,604.29,0.33096691]
[1746612655444,0.99861581,605.83,604.29,0.33096691]
[1746612656039,0.99861581,605.82,604.29,0.33096691]
[1746612656344,0.99861581,605.81,604.29,0.33096691]
[1746612656845,0.99861581,605.8,604.29,0.33096691]
[1746612657446,0.99861581,605.79,604.29,0.33096691]
[1746612657845,0.99861581,605.79,604.29,2.91496691]
[1746612658143,0.99861581,605.78,604.29,2.91496691]
[1746612659046,0.99861581,605.77,604.29,2.91496691]
[1746612659540,0.99861581,605.76,604.29,2.91496691]
[1746612660240,0.28751539,605.85,604.29,2.91496691]
[1746612660241,0.99861581,605.75,604.29,2.91496691]
[1746612660950,0.99861581,605.74,604.29,2.91496691]
[1746612661251,0.99861581,605.73,604.29,2.91496691]
[1746612661753,0.99861581,605.72,604.29,2.91496691]
[1746612662452,0.99861581,605.71,604.29,2.91496691]
[1746612663252,0.99861581,605.7,604.29,2.91496691]
[1746612663452,0.99861581,605.69,604.29,2.91496691]
[1746612663948,0.99861581,605.68,604.29,2.91496691]
[1746612664352,0.99861581,605.67,604.29,2.91496691]
[1746612664955,0.32967938,606.65,604.29,2.91496691]
[1746612664956,0.99861581,605.66,604.29,2.91496691]
[1746612665455,0.99861581,605.65,604.29,2.91496691]
[1746612666055,0.99861581,605.64,604.29,2.91496691]
[1746612667059,0.99861581,605.63,604.29,2.91496691]
[1746612667456,0.99861581,605.62,604.29,2.91496691]
[1746612667956,0.99861581,605.61,604.29,2.91496691]
[1746612668157,0.99861581,605.6,604.29,2.91496691]
[1746612668757,0.99861581,605.59,604.29,2.91496691]
[1746612669056,0.99861581,605.58,604.29,2.91496691]
[1746612669756,0.99861581,605.57,604.29,2.91496691]
[1746612670452,0.99861581,605.56,604.29,2.91496691]
[1746612670657,0.99861581,605.55,604.29,2.91496691]
[1746612671054,0.99861581,605.54,604.29,2.91496691]
[1746612671558,0.99861581,605.53,604.29,2.91496691]
[1746612671857,0.99861581,605.52,604.29,2.91496691]
[1746612672053,0.99861581,605.51,604.29,2.91496691]
[1746612672357,0.99861581,605.5,604.29,2.91496691]
[1746612673159,0.99861581,605.49,604.29,2.91496691]
[1746612673457,0.99861581,605.48,604.29,2.91496691]
[1746612674058,0.99861581,605.47,604.29,2.91496691]
[1746612674557,0.99861581,605.46,604.29,2.91496691]
[1746612675157,0.99861581,605.45,604.29,2.91496691]
[1746612675757,0.99861581,605.44,604.29,2.91496691]
[1746612676057,0.99861581,605.43,604.29,2.91496691]
[1746612678358,0.99861581,605.42,604.29,2.91496691]
[1746612678959,0.99861581,605.41,604.29,2.91496691]
[1746612679658,0.99861581,605.4,604.29,2.91496691]
[1746612680559,0.99861581,605.39,604.29,2.91496691]
[1746612680859,0.28755459,605.86,604.29,2.91496691]
[1746612681053,0.99893525,605.38,604.29,2.91496691]
[1746612681553,0.99893525,605.37,604.29,2.91496691]
[1746612681755,0.99893525,605.36,604.29,2.91496691]
[1746612682157,0.99893525,605.35,604.29,2.91496691]
[1746612682858,0.99893525,605.34,604.29,2.91496691]
[1746612683358,0.28755459,605.86,604.29,2.91496691]
[1746612683758,0.99860211,605.85,604.29,2.91496691]
[1746612683955,1.30214589,605.85,604.29,2.91496691]
[1746612684155,0.99860211,605.85,604.29,2.91496691]
[1746612684359,0.28755459,605.86,604.29,2.91496691]
[1746612684360,0.99860211,605.84,604.29,2.91496691]
[1746612684554,0.99860211,605.83,604.29,2.91496691]
[1746612685060,0.99860211,605.82,604.29,2.91496691]
[1746612685358,0.99860211,605.81,604.29,2.91496691]
[1746612685860,0.99860211,605.8,604.29,2.91496691]
[1746612686355,0.99860211,605.79,604.29,2.91496691]
[1746612686758,0.99860211,605.78,604.29,2.91496691]
[1746612687658,0.99860211,605.77,604.29,2.91496691]
[1746612688258,0.99860211,605.76,604.29,2.91496691]
[1746612688657,0.28751064,605.86,604.29,2.91496691]
[1746612688658,0.99860211,605.75,604.29,2.91496691]
[1746612689060,0.99860211,605.74,604.29,2.91496691]
[1746612689459,0.99860211,605.73,604.29,2.91496691]
[1746612689960,0.99860211,605.72,604.29,2.91496691]
[1746612690260,0.99860211,605.71,604.29,2.91496691]
[1746612690758,0.99860211,605.7,604.29,2.91496691]
[1746612691259,0.99860211,605.69,604.29,2.91496691]
[1746612691760,0.99860211,605.68,604.29,2.91496691]
[1746612692062,0.99860211,605.67,604.29,2.91496691]
[1746612692761,1.00066739,605.66,604.29,2.91496691]
[1746612693062,1.00066739,605.65,604.29,2.91496691]
[1746612693557,1.00066739,605.64,604.29,2.91496691]
[1746612693863,1.00066739,605.63,604.29,2.91496691]
[1746612694361,1.00066739,605.62,604.29,2.91496691]
[1746612694862,1.00066739,605.61,604.29,2.91496691]
[1746612695262,1.00066739,605.6,604.29,2.91496691]
[1746612696064,1.00066739,605.59,604.29,2.91496691]
[1746612696264,1.00066739,605.58,604.29,2.91496691]
[1746612696867,1.00066739,605.57,604.29,2.91496691]
[1746612697667,1.00066739,605.56,604.29,2.91496691]
[1746612698171,1.00066739,605.55,604.29,2.91496691]
[1746612698366,1.00066739,605.55,604.29,3.96211471]
[1746612698870,1.00066739,605.54,604.29,3.96211471]
[1746612699170,1.00066739,605.53,604.29,3.96211471]
[1746612699365,1.00066739,605.52,604.29,3.96211471]
[1746612699669,1.00066739,605.51,604.29,3.96211471]
[1746612699969,1.00066739,605.5,604.29,3.96211471]
[1746612700573,1.00066739,605.5,604.31,1.0471478]
[1746612700773,1.00066739,605.49,604.33,0.33094501]
[1746612701573,1.00066739,605.48,604.33,0.33094501]
[1746612702168,1.00066739,605.47,604.33,0.33094501]
[1746612702472,1.00066739,605.46,604.33,0.33094501]
[1746612703673,1.00066739,605.45,604.33,0.33094501]
[1746612704370,1.00066739,605.44,604.34,1.649]
[1746612704569,1.00066739,605.43,604.36,0.33092858]
[1746612705069,1.00066739,605.42,604.36,0.33092858]
[1746612705869,1.00066739,605.41,604.36,0.33092858]
[1746612706174,1.00066739,605.4,604.36,0.33092858]
[1746612706571,1.00066739,605.39,604.36,0.33092858]
[1746612707473,1.00066739,605.38,604.36,0.33092858]
[1746612707976,1.00066739,605.37,604.36,0.33092858]
[1746612708172,1.00066739,605.36,604.36,0.33092858]
[1746612708778,0.28754508,605.89,604.36,0.33092858]
[1746612708978,1.00121814,605.35,604.36,0.33092858]
[1746612709479,1.00121814,605.34,604.36,0.33092858]
[1746612709674,1.00121814,605.33,604.36,0.33092858]
[1746612710579,1.00121814,605.32,604.36,0.33092858]
[1746612711384,1.00121814,605.31,604.36,0.33092858]
[1746612712184,1.00121814,605.3,604.36,0.33092858]
[1746612712685,1.00121814,605.29,604.36,0.33092858]
[1746612712980,1.00121814,605.28,604.36,0.33092858]
[1746612713481,1.00121814,605.27,604.36,0.33092858]
[1746612714282,1.00121814,605.26,604.36,0.33092858]
[1746612714582,1.00121814,605.25,604.36,0.33092858]
[1746612715085,1.00121814,605.24,604.36,0.33092858]
[1746612715585,1.00121814,605.23,604.36,0.33092858]
[1746612716485,1.00121814,605.22,604.36,0.33092858]
[1746612716985,1.00121814,605.21,604.36,0.33092858]
[1746612717787,1.00121814,605.2,604.36,0.33092858]
[1746612718083,1.00121814,605.19,604.36,0.33092858]
[1746612718581,1.00121814,605.18,604.36,0.33092858]
[1746612719286,1.00121814,605.17,604.36,0.33092858]
[1746612719682,1.00121814,605.16,604.36,0.33092858]
[1746612720283,0.28759974,605.74,604.36,0.33092858]
[1746612720887,0.99961725,605.73,604.36,0.33092858]
[1746612721388,0.99961725,605.72,604.36,0.33092858]
[1746612721886,0.99961725,605.71,604.36,0.33092858]
[1746612722582,0.99961725,605.7,604.36,0.33092858]
[1746612722987,0.99961725,605.69,604.36,0.33092858]
[1746612723688,0.99961725,605.68,604.36,0.33092858]
[1746612724487,0.99961725,605.67,604.36,0.33092858]
[1746612725188,0.99961725,605.66,604.36,0.33092858]
[1746612725381,0.99961725,605.66,604.37,0.64]
[1746612725582,0.99961725,605.65,604.39,0.33091215]
[1746612725884,0.99961725,605.64,604.39,0.33091215]
[1746612726387,0.99961725,605.63,604.39,0.33091215]
[1746612726887,0.99961725,605.62,604.39,0.33091215]
[1746612727187,0.99961725,605.61,604.39,0.33091215]
[1746612727584,0.99961725,605.6,604.39,0.33091215]
[1746612727888,0.99961725,605.59,604.39,0.33091215]
[1746612728187,0.99961725,605.58,604.39,0.33091215]
[1746612728587,0.99961725,605.57,604.39,0.33091215]
[1746612729689,0.99961725,605.56,604.39,0.33091215]
[1746612730388,0.99961725,605.55,604.39,0.33091215]
[1746612730685,0.99961725,605.54,604.39,0.33091215]
[1746612731383,0.99961725,605.53,604.39,0.33091215]
[1746612731990,0.99961725,605.52,604.39,0.33091215]
[1746612732490,0.99961725,605.51,604.39,0.33091215]
[1746612733184,0.99961725,605.5,604.39,0.33091215]
[1746612733387,0.99961725,605.49,604.39,0.33091215]
[1746612733690,0.99961725,605.48,604.39,0.33091215]
[1746612733883,0.99961725,605.47,604.39,0.33091215]
[1746612734388,0.99961725,605.46,604.39,0.33091215]
[1746612734790,0.99961725,605.45,604.39,0.33091215]
[1746612735290,0.99961725,605.44,604.4,0.663]
[1746612735491,0.99961725,605.44,604.42,0.33089573]
[1746612735689,0.99961725,605.43,604.42,0.33089573]
[1746612736191,0.99961725,605.42,604.42,0.33089573]
[1746612736790,0.99961725,605.41,604.42,0.33089573]
[1746612737392,0.99961725,605.4,604.42,0.33089573]
[1746612737892,0.68696626,607.14,604.42,0.33089573]
[1746612737893,0.99961725,605.39,604.42,0.33089573]
[1746612738395,0.99961725,605.38,604.42,0.33089573]
[1746612738794,0.99961725,605.38,604.42,0.82389573]
[1746612738993,0.99961725,605.37,604.42,0.82389573]
[1746612739495,0.99961725,605.36,604.42,0.82389573]
[1746612739790,0.99961725,605.35,604.42,0.82389573]
[1746612740393,0.99961725,605.34,604.42,0.82389573]
[1746612741192,0.99961725,605.33,604.42,0.82389573]
[1746612741895,0.99961725,605.32,604.42,0.82389573]
[1746612742495,0.99961725,605.31,604.42,0.82389573]
[1746612742897,0.99961725,605.3,604.42,0.82389573]
[1746612743292,0.99961725,605.29,604.42,0.82389573]
[1746612743796,0.99961725,605.28,604.42,0.82389573]
[1746612744297,0.99961725,605.27,604.42,0.82389573]
[1746612745294,0.99961725,605.26,604.42,0.82389573]
[1746612745901,0.99961725,605.25,604.42,0.82389573]
[1746612746097,0.99961725,605.24,604.42,0.82389573]
[1746612746803,0.28756647,605.83,604.42,0.82389573]
[1746612747103,0.30357317,605.82,604.42,0.82389573]
[1746612747303,1.00039056,605.81,604.42,0.82389573]
[1746612747704,0.30357317,605.8,604.42,0.82389573]
[1746612747999,1.30396373,605.8,604.42,0.82389573]
[1746612748403,1.00039056,605.79,604.42,0.82389573]
[1746612748703,1.30396373,605.79,604.42,0.82389573]
[1746612748899,1.00039056,605.78,604.42,0.82389573]
[1746612749104,1.30396373,605.78,604.42,0.82389573]
[1746612749304,0.30357317,605.77,604.42,0.82389573]
[1746612749598,1.00039056,605.76,604.42,0.82389573]
[1746612750103,0.30357317,605.75,604.42,0.82389573]
[1746612750303,1.00039056,605.74,604.42,0.82389573]
[1746612751201,0.30357346,605.73,604.42,0.82389573]
[1746612751403,1.00039056,605.72,604.42,0.82389573]
[1746612752302,1.00039056,605.71,604.42,0.82389573]
[1746612752502,1.00039056,605.7,604.42,0.82389573]
[1746612753504,1.00039056,605.69,604.42,0.82389573]
[1746612753803,1.00039056,605.68,604.42,0.82389573]
[1746612754099,1.00039056,605.67,604.42,0.82389573]
[1746612754706,1.00039056,605.66,604.42,0.82389573]
[1746612755504,1.00039056,605.65,604.42,0.82389573]
[1746612755804,1.00039056,605.64,604.42,0.82389573]
[1746612756700,1.00039056,605.63,604.42,0.82389573]
[1746612757205,1.00039056,605.62,604.42,0.82389573]
[1746612757405,1.00039056,605.61,604.42,0.82389573]
[1746612758004,1.00039056,605.6,604.42,0.82389573]
[1746612758408,1.00039056,605.59,604.42,0.82389573]
[1746612759409,1.00039056,605.58,604.42,0.82389573]
[1746612759909,1.00039056,605.57,604.42,0.82389573]
[1746612760206,1.00039056,605.57,604.42,2.16589573]
[1746612760409,1.00039056,605.56,604.42,2.16589573]
[1746612760705,1.00039056,605.55,604.42,2.16589573]
[1746612761110,1.00039056,605.54,604.42,2.16589573]
[1746612761905,1.00039056,605.53,604.42,2.16589573]
[1746612762905,1.00039056,605.52,604.42,2.16589573]
[1746612763609,1.00039056,605.51,604.42,2.16589573]
[1746612763810,1.00039056,605.5,604.42,2.16589573]
[1746612764309,1.00039056,605.49,604.42,2.16589573]
[1746612764610,1.00039056,605.48,604.42,2.16589573]
[1746612765412,1.00039056,605.47,604.42,2.16589573]
[1746612765913,1.00039056,605.47,604.42,2.82089573]
[1746612766115,1.00039056,605.46,604.42,2.82089573]
[1746612766615,1.00039056,605.45,604.42,2.82089573]
[1746612766814,1.00039056,605.44,604.42,2.82089573]
[1746612767511,1.00039056,605.43,604.42,2.82089573]
[1746612768116,1.00039056,605.42,604.42,2.82089573]
[1746612768709,1.00039056,605.41,604.42,2.82089573]
[1746612769014,1.00039056,605.4,604.42,2.82089573]
[1746612769413,1.00039056,605.39,604.42,2.82089573]
[1746612770413,1.00039056,605.38,604.42,2.82089573]
[1746612770809,1.00039056,605.37,604.42,2.82089573]
[1746612771115,1.00039056,605.36,604.42,2.82089573]
[1746612771815,1.00039056,605.35,604.42,2.82089573]
[1746612772309,1.00039056,605.34,604.42,2.82089573]
[1746612772814,1.00039056,605.33,604.42,2.82089573]
[1746612773316,1.00039056,605.32,604.42,2.82089573]
[1746612774120,1.00039056,605.31,604.42,2.82089573]
[1746612774618,1.00039056,605.3,604.42,2.82089573]
[1746612775113,1.00039056,605.29,604.42,2.82089573]
[1746612775813,1.00039056,605.28,604.42,2.82089573]
[1746612776218,1.00039056,605.27,604.42,2.82089573]
[1746612776418,0.28756409,605.83,604.42,2.82089573]
[1746612777119,1.00117398,605.82,604.42,2.82089573]
[1746612777418,1.00117398,605.81,604.42,2.82089573]
[1746612777917,1.00117398,605.8,604.42,2.82089573]
[1746612778418,0.98751205,605.79,604.42,2.82089573]
[1746612778814,0.28756409,605.83,604.42,2.82089573]
[1746612779119,1.25655369,606.45,604.42,2.82089573]